[Event "FIDE Women World Rapid 2024"]
[Site "New York"]
[Date "2024.12.27"]
[Round "7.8"]
[White "Kashlinskaya, Alina"]
[Black "Tan, Zhongyi"]
[Result "1/2-1/2"]
[ECO "E45"]
[WhiteElo "2493"]
[BlackElo "2561"]
[Annotator "ChessBase"]
[PlyCount "99"]
[EventDate "2024.12.14"]
[EventType "swiss"]
[EventCountry "USA"]
[SourceTitle "playchess.com"]
[Source "ChessBase"]
[SourceQuality "1"]
[TimeControl "900+10"]

1. d4 {[%emt 0:00:01]} Nf6 {[%emt 0:00:02]} 2. c4 {[%emt 0:00:02]} e6 {[%emt 0:00:01]} 3. Nc3 {[%emt 0:00:02]} Bb4 {[%emt 0:00:02]} 4. e3 {[%emt 0:00:02]} b6 {[%emt 0:00:02]} 5. Nge2 {[%emt 0:00:04]} Ba6 {[%emt 0:00:02]} 6. a3 {[%emt 0:00:06]} Be7 {[%emt 0:00:02]} 7. Nf4 {[%emt 0:00:21]} d5 {[%emt 0:00:03]} 8. cxd5 {[%emt 0:00:05]} Bxf1 {[%emt 0:00:03]} 9. Kxf1 {[%emt 0:00:05]} exd5 {[%emt 0:00:02]} 10. Qf3 {[%emt 0:00:10]} c6 {[%emt 0:00:07]} 11. g4 {[%emt 0:00:17]} O-O {[%emt 0:00:07]} 12. g5 {[%emt 0:00:22]} Ne8 {[%emt 0:00:02]} 13. h4 {[%emt 0:00:05]} Nd6 {[%emt 0:00:10]} 14. b3 {[%emt 0:01:07]} Na6 {[%emt 0:00:57]} 15. Bb2 {[%emt 0:00:22]} Qd7 {[%emt 0:00:29]} 16. Kg2 {[%emt 0:00:53]} Nc7 {[%emt 0:00:04]} 17. Rac1 {[%emt 0:03:56]} f6 {[%emt 0:01:51]} 18. g6 {[%emt 0:00:09]} h6 {[%emt 0:00:31]} 19. a4 {[%emt 0:01:53]} Rfe8 {[%emt 0:00:54]} 20. Nce2 {[%emt 0:00:38]} Ne4 {[%emt 0:00:19]} 21. Qh3 {[%emt 0:00:19]} f5 {[%emt 0:00:59]} 22. Rc2 {[%emt 0:00:11]} Na6 {[%emt 0:00:48]} 23. Nd3 {[%emt 0:00:25]} Bd6 {[%emt 0:00:45]} 24. Rhc1 {[%emt 0:00:07]} Rac8 {[%emt 0:00:01]} 25. f3 {[%emt 0:00:25]} Nf6 {[%emt 0:04:56]} 26. Ne5 {[%emt 0:00:02]} Bxe5 {[%emt 0:00:02]} 27. dxe5 {[%emt 0:00:01]} Nh5 {[%emt 0:00:02]} 28. Nd4 {[%emt 0:00:48]} Nb4 {[%emt 0:00:06]} 29. Nxf5 {[%emt 0:00:14]} Rcd8 {[%emt 0:01:48]} 30. Rd2 {[%emt 0:00:53]} d4 {[%emt 0:00:43]} 31. Rxd4 {[%emt 0:01:50]} Nd5 {[%emt 0:00:02]} 32. Kh1 {[%emt 0:02:13]} Rxe5 {[%emt 0:00:01]} 33. e4 {[%emt 0:00:14]} Nhf4 {[%emt 0:00:11]} 34. Qh2 {[%emt 0:00:58]} Rxf5 {[%emt 0:00:23]} 35. exf5 {[%emt 0:00:15]} Qxf5 {[%emt 0:00:02]} 36. Qxf4 {[%emt 0:00:28]} Qxf4 {[%emt 0:00:04]} 37. Rxf4 {[%emt 0:00:01]} Nxf4 {[%emt 0:00:02]} 38. Rxc6 {[%emt 0:00:11]} Rd1+ {[%emt 0:00:05]} 39. Kh2 {[%emt 0:00:00]} Rd2+ {[%emt 0:00:26]} 40. Kg3 {[%emt 0:00:07]} Nxg6 {[%emt 0:00:38]} 41. Bc3 {[%emt 0:00:25]} Rd3 {[%emt 0:00:00]} 42. Rc7 {[%emt 0:00:37]} Ne7 {[%emt 0:00:00]} 43. Rxe7 {[%emt 0:00:37]} Rxc3 {[%emt 0:00:00]} 44. b4 {[%emt 0:00:01]} Rc4 {[%emt 0:00:00]} 45. Rxa7 {[%emt 0:00:03]} Rxb4 {[%emt 0:00:00]} 46. h5 {[%emt 0:00:10]} Kh7 {[%emt 0:00:31]} 47. f4 {[%emt 0:00:07]} b5 {[%emt 0:00:08]} 48. axb5 {[%emt 0:00:08]} Rxb5 {[%emt 0:00:01]} 49. Kg4 {[%emt 0:00:01]} Rc5 {[%emt 0:00:03]} 50. Rb7 {[%emt 0:00:07]} 1/2-1/2

[Event "FIDE Women World Rapid 2024"]
[Site "New York"]
[Date "2024.12.27"]
[Round "7.8"]
[White "Priyanka Nutakki"]
[Black "Paragua, Megan Althea"]
[Result "0-1"]
[ECO "A13"]
[WhiteElo "2296"]
[BlackElo "2185"]
[Annotator "ChessBase"]
[PlyCount "125"]
[EventDate "2024.12.14"]
[EventType "swiss"]
[EventCountry "USA"]
[SourceTitle "playchess.com"]
[Source "ChessBase"]
[SourceQuality "1"]
[TimeControl "900+10"]

1. Nf3 {[%emt 0:00:02]} Nf6 {[%emt 0:00:03]} 2. b3 {[%emt 0:00:04]} d5 {[%emt 0:00:01]} 3. e3 {[%emt 0:00:06]} e6 {[%emt 0:00:01]} 4. Bb2 {[%emt 0:00:04]} Be7 {[%emt 0:00:01]} 5. c4 {[%emt 0:00:26]} O-O {[%emt 0:00:04]} 6. Be2 {[%emt 0:00:02]} b6 {[%emt 0:00:01]} 7. O-O {[%emt 0:00:11]} Bb7 {[%emt 0:00:01]} 8. d4 {[%emt 0:00:02]} Nbd7 {[%emt 0:00:01]} 9. Nbd2 {[%emt 0:00:27]} c5 {[%emt 0:00:05]} 10. cxd5 {[%emt 0:00:14]} Bxd5 {[%emt 0:00:26]} 11. Rc1 {[%emt 0:00:36]} Bb7 {[%emt 0:00:15]} 12. Qc2 {[%emt 0:00:37]} Rc8 {[%emt 0:00:04]} 13. Qb1 {[%emt 0:00:01]} cxd4 {[%emt 0:00:10]} 14. Nxd4 {[%emt 0:00:14]} Rxc1 {[%emt 0:00:30]} 15. Rxc1 {[%emt 0:00:12]} Qa8 {[%emt 0:00:02]} 16. Bf1 {[%emt 0:00:55]} Rc8 {[%emt 0:00:02]} 17. Rd1 {[%emt 0:00:25]} Nc5 {[%emt 0:00:26]} 18. Nc4 {[%emt 0:00:12]} Rd8 {[%emt 0:01:37]} 19. Qa1 {[%emt 0:00:23]} Qb8 {[%emt 0:01:18]} 20. f3 {[%emt 0:01:48]} Ncd7 {[%emt 0:03:06]} 21. a3 {[%emt 0:01:45]} Nf8 {[%emt 0:00:21]} 22. b4 {[%emt 0:00:33]} Ng6 {[%emt 0:00:43]} 23. Be2 {[%emt 0:02:59]} h6 {[%emt 0:00:40]} 24. Qb1 {[%emt 0:00:00]} Nf8 {[%emt 0:01:53]} 25. Nb5 {[%emt 0:00:16]} Rxd1+ {[%emt 0:00:55]} 26. Qxd1 {[%emt 0:00:10]} Ng6 {[%emt 0:01:12]} 27. Bd3 {[%emt 0:00:31]} a6 {[%emt 0:00:36]} 28. Nd4 {[%emt 0:00:32]} Qc7 {[%emt 0:00:18]} 29. Qe2 {[%emt 0:02:14]} Nf8 {[%emt 0:00:24]} 30. Nd2 {[%emt 0:00:34]} Nd5 {[%emt 0:00:32]} 31. g3 {[%emt 0:00:45]} Nd7 {[%emt 0:00:29]} 32. e4 {[%emt 0:00:18]} Nc3 {[%emt 0:00:09]} 33. Qf1 {[%emt 0:01:22]} Bf6 {[%emt 0:00:42]} 34. N2b3 {[%emt 0:00:02]} Na4 {[%emt 0:00:15]} 35. Ba1 {[%emt 0:00:07]} b5 {[%emt 0:00:27]} 36. Kg2 {[%emt 0:00:23]} Ne5 {[%emt 0:00:06]} 37. Be2 {[%emt 0:00:15]} Nc4 {[%emt 0:00:54]} 38. Bxc4 {[%emt 0:01:08]} bxc4 {[%emt 0:00:08]} 39. Nc5 {[%emt 0:00:17]} Nxc5 {[%emt 0:00:16]} 40. Qxc4 {[%emt 0:00:01]} e5 {[%emt 0:00:01]} 41. bxc5 {[%emt 0:00:30]} exd4 {[%emt 0:00:01]} 42. Bxd4 {[%emt 0:00:03]} Bxd4 {[%emt 0:00:05]} 43. Qxd4 {[%emt 0:00:02]} Bc6 {[%emt 0:00:10]} 44. h4 {[%emt 0:00:08]} Qd7 {[%emt 0:00:00]} 45. Qc3 {[%emt 0:00:03]} Bb5 {[%emt 0:00:01]} 46. Qc2 {[%emt 0:00:28]} Qd3 {[%emt 0:00:13]} 47. Qxd3 {[%emt 0:00:15]} Bxd3 {[%emt 0:00:01]} 48. Kf2 {[%emt 0:00:02]} Kf8 {[%emt 0:00:05]} 49. Ke3 {[%emt 0:00:01]} Bb5 {[%emt 0:00:02]} 50. Kd4 {[%emt 0:00:01]} Ke7 {[%emt 0:00:01]} 51. Kd5 {[%emt 0:00:12]} Kd7 {[%emt 0:00:01]} 52. f4 {[%emt 0:00:06]} Bc6+ {[%emt 0:00:11]} 53. Ke5 {[%emt 0:00:04]} Bb7 {[%emt 0:00:47]} 54. h5 {[%emt 0:00:13]} Ke7 {[%emt 0:00:14]} 55. g4 {[%emt 0:00:22]} f6+ {[%emt 0:00:35]} 56. Kd4 {[%emt 0:00:09]} Ke6 {[%emt 0:00:18]} 57. f5+ {[%emt 0:00:20]} Ke7 {[%emt 0:00:03]} 58. a4 {[%emt 0:00:22]} a5 {[%emt 0:00:06]} 59. e5 {[%emt 0:00:09]} Bf3 {[%emt 0:00:27]} 60. e6 {[%emt 0:00:09]} Bxg4 {[%emt 0:00:32]} 61. Ke4 {[%emt 0:00:01]} Bxh5 {[%emt 0:00:22]} 62. c6 {[%emt 0:00:07]} Kd6 {[%emt 0:00:03]} 63. Kd4 {[%emt 0:00:22]} 0-1

[Event "FIDE Women World Rapid 2024"]
[Site "New York"]
[Date "2024.12.27"]
[Round "7.9"]
[White "Zhu, Jiner"]
[Black "Shuvalova, Polina"]
[Result "1-0"]
[ECO "B90"]
[WhiteElo "2514"]
[BlackElo "2504"]
[Annotator "ChessBase"]
[PlyCount "119"]
[EventDate "2024.12.14"]
[EventType "swiss"]
[EventCountry "USA"]
[SourceTitle "playchess.com"]
[Source "ChessBase"]
[SourceQuality "1"]
[TimeControl "900+10"]

1. e4 {[%emt 0:00:04]} c5 {[%emt 0:00:06]} 2. Nf3 {[%emt 0:00:02]} d6 {[%emt 0:00:01]} 3. d4 {[%emt 0:00:01]} cxd4 {[%emt 0:00:01]} 4. Nxd4 {[%emt 0:00:02]} Nf6 {[%emt 0:00:01]} 5. Nc3 {[%emt 0:00:01]} a6 {[%emt 0:00:01]} 6. Be3 {[%emt 0:00:03]} e5 {[%emt 0:00:09]} 7. Nf3 {[%emt 0:00:02]} Be7 {[%emt 0:00:25]} 8. Nd2 {[%emt 0:00:03]} Ng4 {[%emt 0:01:33]} 9. Nc4 {[%emt 0:00:44]} Nxe3 {[%emt 0:00:07]} 10. Nxe3 {[%emt 0:00:03]} O-O {[%emt 0:00:06]} 11. Bc4 {[%emt 0:00:08]} b5 {[%emt 0:00:15]} 12. Bb3 {[%emt 0:00:17]} Nd7 {[%emt 0:00:05]} 13. a4 {[%emt 0:00:40]} b4 {[%emt 0:00:41]} 14. Ncd5 {[%emt 0:00:03]} Bg5 {[%emt 0:01:54]} 15. Nc4 {[%emt 0:02:25]} Nc5 {[%emt 0:02:33]} 16. Ncb6 {[%emt 0:01:42]} Rb8 {[%emt 0:00:29]} 17. Nxc8 {[%emt 0:00:03]} Rxc8 {[%emt 0:00:25]} 18. Qe2 {[%emt 0:00:06]} a5 {[%emt 0:00:24]} 19. O-O {[%emt 0:00:36]} Nxb3 {[%emt 0:00:30]} 20. cxb3 {[%emt 0:00:01]} Rc5 {[%emt 0:00:12]} 21. Rad1 {[%emt 0:00:03]} Qd7 {[%emt 0:01:30]} 22. Rd3 {[%emt 0:01:13]} Qe6 {[%emt 0:00:13]} 23. Qd1 {[%emt 0:01:15]} Rfc8 {[%emt 0:01:01]} 24. Qh5 {[%emt 0:02:00]} h6 {[%emt 0:00:27]} 25. Nb6 {[%emt 0:00:10]} R8c6 {[%emt 0:00:13]} 26. Nc4 {[%emt 0:00:02]} d5 {[%emt 0:00:04]} 27. Rxd5 {[%emt 0:00:27]} Rxd5 {[%emt 0:00:04]} 28. exd5 {[%emt 0:00:02]} Qxd5 {[%emt 0:00:02]} 29. h4 {[%emt 0:00:58]} Bf6 {[%emt 0:00:05]} 30. Qg4 {[%emt 0:01:29]} Qd3 {[%emt 0:03:30]} 31. Nxa5 {[%emt 0:02:33]} Rd6 {[%emt 0:00:59]} 32. Qc8+ {[%emt 0:00:05]} Rd8 {[%emt 0:00:43]} 33. Qc4 {[%emt 0:00:05]} Qd2 {[%emt 0:00:02]} 34. Nc6 {[%emt 0:00:17]} Rd6 {[%emt 0:00:22]} 35. a5 {[%emt 0:00:48]} Qxb2 {[%emt 0:01:21]} 36. a6 {[%emt 0:00:06]} Qa2 {[%emt 0:00:18]} 37. Nxb4 {[%emt 0:00:26]} Qa3 {[%emt 0:00:15]} 38. Nc6 {[%emt 0:00:10]} Rd7 {[%emt 0:00:10]} 39. b4 {[%emt 0:00:10]} e4 {[%emt 0:00:11]} 40. Qxe4 {[%emt 0:00:18]} Rc7 {[%emt 0:00:10]} 41. b5 {[%emt 0:00:08]} Qc5 {[%emt 0:00:08]} 42. a7 {[%emt 0:00:20]} Rc8 {[%emt 0:00:02]} 43. a8=Q {[%emt 0:00:44]} Rxa8 {[%emt 0:00:02]} 44. Ne7+ {[%emt 0:00:01]} Bxe7 {[%emt 0:00:03]} 45. Qxa8+ {[%emt 0:00:02]} Kh7 {[%emt 0:00:06]} 46. Qc6 {[%emt 0:00:19]} Qe5 {[%emt 0:00:08]} 47. g3 {[%emt 0:00:12]} Bc5 {[%emt 0:00:02]} 48. Kg2 {[%emt 0:00:09]} Qd4 {[%emt 0:00:02]} 49. Qf3 {[%emt 0:00:10]} Qd7 {[%emt 0:00:44]} 50. Rd1 {[%emt 0:00:09]} Qe6 {[%emt 0:00:14]} 51. Qd5 {[%emt 0:00:23]} Qe7 {[%emt 0:00:15]} 52. Rc1 {[%emt 0:00:31]} Bb6 {[%emt 0:00:06]} 53. Rc6 {[%emt 0:00:07]} Qa7 {[%emt 0:00:05]} 54. Rc8 {[%emt 0:00:45]} Qe7 {[%emt 0:00:22]} 55. Rc6 {[%emt 0:00:17]} Qa7 {[%emt 0:00:02]} 56. Qd3+ {[%emt 0:00:10]} g6 {[%emt 0:00:03]} 57. Qf3 {[%emt 0:00:04]} h5 {[%emt 0:00:05]} 58. Qf6 {[%emt 0:00:16]} Bd4 {[%emt 0:00:06]} 59. Qf4 {[%emt 0:00:05]} Qd7 {[%emt 0:00:08]} 60. Rc7 {[%emt 0:00:14]} 1-0

[Event "FIDE Women World Rapid 2024"]
[Site "New York"]
[Date "2024.12.27"]
[Round "7.9"]
[White "Balabayeva, Xeniya"]
[Black "Sliwicka, Alicja"]
[Result "1-0"]
[ECO "D00"]
[WhiteElo "2315"]
[BlackElo "2346"]
[Annotator "ChessBase"]
[PlyCount "139"]
[EventDate "2024.12.14"]
[EventType "swiss"]
[EventCountry "USA"]
[SourceTitle "playchess.com"]
[Source "ChessBase"]
[SourceQuality "1"]
[TimeControl "900+10"]

1. d4 {[%emt 0:00:02]} Nf6 {[%emt 0:00:01]} 2. Nf3 {[%emt 0:00:02]} d5 {[%emt 0:00:02]} 3. Bf4 {[%emt 0:00:02]} g6 {[%emt 0:00:09]} 4. e3 {[%emt 0:01:18]} Bg7 {[%emt 0:00:02]} 5. h3 {[%emt 0:00:02]} O-O {[%emt 0:00:20]} 6. Nc3 {[%emt 0:00:09]} c6 {[%emt 0:00:14]} 7. Be2 {[%emt 0:00:41]} b5 {[%emt 0:01:05]} 8. a4 {[%emt 0:01:36]} b4 {[%emt 0:00:24]} 9. Na2 {[%emt 0:00:02]} a5 {[%emt 0:00:04]} 10. Nc1 {[%emt 0:00:03]} c5 {[%emt 0:00:26]} 11. dxc5 {[%emt 0:01:32]} Nc6 {[%emt 0:01:02]} 12. Nd4 {[%emt 0:01:43]} Bb7 {[%emt 0:00:13]} 13. Bb5 {[%emt 0:00:06]} Rc8 {[%emt 0:00:14]} 14. Ncb3 {[%emt 0:01:14]} Nh5 {[%emt 0:01:11]} 15. Bh2 {[%emt 0:00:36]} Na7 {[%emt 0:01:28]} 16. O-O {[%emt 0:00:55]} Nf6 {[%emt 0:01:01]} 17. Be5 {[%emt 0:02:57]} Ne4 {[%emt 0:01:32]} 18. Bxg7 {[%emt 0:00:28]} Kxg7 {[%emt 0:00:01]} 19. f4 {[%emt 0:00:16]} e6 {[%emt 0:00:32]} 20. Nf3 {[%emt 0:00:28]} Nc6 {[%emt 0:00:46]} 21. Bxc6 {[%emt 0:00:32]} Bxc6 {[%emt 0:00:10]} 22. Qd4+ {[%emt 0:00:02]} f6 {[%emt 0:00:13]} 23. Ng5 {[%emt 0:00:12]} Re8 {[%emt 0:01:18]} 24. Nxe4 {[%emt 0:00:11]} dxe4 {[%emt 0:00:02]} 25. Rfd1 {[%emt 0:00:08]} Qc7 {[%emt 0:00:24]} 26. Qd6 {[%emt 0:00:58]} Bd5 {[%emt 0:00:10]} 27. Rac1 {[%emt 0:00:06]} Red8 {[%emt 0:02:13]} 28. Qxc7+ {[%emt 0:03:05]} Rxc7 {[%emt 0:00:01]} 29. Nxa5 {[%emt 0:00:02]} Ra8 {[%emt 0:00:05]} 30. Nb3 {[%emt 0:00:02]} Rxa4 {[%emt 0:00:07]} 31. Rd4 {[%emt 0:00:11]} Ra2 {[%emt 0:00:44]} 32. Rxb4 {[%emt 0:00:02]} Rxb2 {[%emt 0:00:05]} 33. Rb5 {[%emt 0:00:02]} Ra7 {[%emt 0:00:43]} 34. Nd4 {[%emt 0:00:33]} Rxb5 {[%emt 0:00:18]} 35. Nxb5 {[%emt 0:00:02]} Ra5 {[%emt 0:00:02]} 36. c4 {[%emt 0:00:10]} Bc6 {[%emt 0:00:55]} 37. Nd4 {[%emt 0:00:26]} Bd7 {[%emt 0:00:51]} 38. c6 {[%emt 0:00:06]} Bc8 {[%emt 0:00:01]} 39. Nb5 {[%emt 0:00:17]} Ra6 {[%emt 0:00:19]} 40. c7 {[%emt 0:00:03]} Rc6 {[%emt 0:00:02]} 41. c5 {[%emt 0:00:23]} Kf8 {[%emt 0:01:27]} 42. Rd1 {[%emt 0:00:07]} Ke7 {[%emt 0:00:05]} 43. Rd8 {[%emt 0:00:10]} Ba6 {[%emt 0:00:35]} 44. Rh8 {[%emt 0:00:02]} Rxc5 {[%emt 0:00:34]} 45. Rxh7+ {[%emt 0:00:03]} Kf8 {[%emt 0:00:09]} 46. Nd6 {[%emt 0:00:01]} Kg8 {[%emt 0:00:12]} 47. Re7 {[%emt 0:00:20]} Rc6 {[%emt 0:00:07]} 48. c8=Q+ {[%emt 0:00:17]} Bxc8 {[%emt 0:00:02]} 49. Re8+ {[%emt 0:00:01]} Kg7 {[%emt 0:00:01]} 50. Nxc8 {[%emt 0:00:02]} Kf7 {[%emt 0:00:09]} 51. Rd8 {[%emt 0:00:06]} Rc3 {[%emt 0:00:12]} 52. Kf2 {[%emt 0:00:36]} Rc2+ {[%emt 0:00:01]} 53. Ke1 {[%emt 0:00:06]} Rxg2 {[%emt 0:00:03]} 54. Rd7+ {[%emt 0:00:04]} Kf8 {[%emt 0:00:02]} 55. Nd6 {[%emt 0:00:03]} Rg3 {[%emt 0:00:03]} 56. Kf2 {[%emt 0:00:04]} Rxh3 {[%emt 0:00:06]} 57. Nxe4 {[%emt 0:00:02]} Rh2+ {[%emt 0:00:20]} 58. Kg3 {[%emt 0:00:02]} Re2 {[%emt 0:00:35]} 59. Kf3 {[%emt 0:00:02]} Ra2 {[%emt 0:00:07]} 60. Nxf6 {[%emt 0:00:02]} Ra5 {[%emt 0:00:02]} 61. Rc7 {[%emt 0:00:23]} Rf5 {[%emt 0:00:15]} 62. Nh7+ {[%emt 0:00:14]} Kg8 {[%emt 0:00:08]} 63. e4 {[%emt 0:00:12]} Ra5 {[%emt 0:00:01]} 64. Ng5 {[%emt 0:00:13]} e5 {[%emt 0:00:05]} 65. fxe5 {[%emt 0:00:02]} Rxe5 {[%emt 0:00:02]} 66. Kf4 {[%emt 0:00:01]} Ra5 {[%emt 0:00:03]} 67. e5 {[%emt 0:00:01]} Kf8 {[%emt 0:00:10]} 68. Ne4 {[%emt 0:00:08]} Ra4 {[%emt 0:00:06]} 69. e6 {[%emt 0:00:13]} Rd4 {[%emt 0:00:26]} 70. Ke5 {[%emt 0:00:07]} 1-0

[Event "FIDE Women World Rapid 2024"]
[Site "New York"]
[Date "2024.12.27"]
[Round "7.10"]
[White "Dzagnidze, Nana"]
[Black "Fataliyeva, Ulviyya"]
[Result "1-0"]
[ECO "E00"]
[WhiteElo "2518"]
[BlackElo "2381"]
[Annotator "ChessBase"]
[PlyCount "65"]
[EventDate "2024.12.14"]
[EventType "swiss"]
[EventCountry "USA"]
[SourceTitle "playchess.com"]
[Source "ChessBase"]
[SourceQuality "1"]
[TimeControl "900+10"]

1. d4 {[%emt 0:00:03]} Nf6 {[%emt 0:00:03]} 2. c4 {[%emt 0:00:03]} e6 {[%emt 0:00:02]} 3. Bg5 {[%emt 0:00:04]} c5 {[%emt 0:00:37]} 4. d5 {[%emt 0:00:06]} exd5 {[%emt 0:00:15]} 5. cxd5 {[%emt 0:00:03]} Qb6 {[%emt 0:00:02]} 6. Nc3 {[%emt 0:02:49]} Qxb2 {[%emt 0:00:36]} 7. Rc1 {[%emt 0:00:04]} Bd6 {[%emt 0:01:33]} 8. Nf3 {[%emt 0:01:29]} O-O {[%emt 0:00:16]} 9. Bxf6 {[%emt 0:02:19]} gxf6 {[%emt 0:00:01]} 10. e3 {[%emt 0:00:01]} Bc7 {[%emt 0:00:34]} 11. Nd2 {[%emt 0:01:49]} Ba5 {[%emt 0:00:21]} 12. Rc2 {[%emt 0:00:01]} Qb6 {[%emt 0:00:42]} 13. Bd3 {[%emt 0:00:50]} f5 {[%emt 0:00:50]} 14. Bxf5 {[%emt 0:00:10]} Qf6 {[%emt 0:00:05]} 15. Qh5 {[%emt 0:00:14]} Qg7 {[%emt 0:00:25]} 16. O-O {[%emt 0:02:56]} d6 {[%emt 0:01:22]} 17. Nce4 {[%emt 0:00:05]} Nd7 {[%emt 0:00:53]} 18. Nc4 {[%emt 0:00:26]} Bc7 {[%emt 0:00:41]} 19. Ncxd6 {[%emt 0:00:36]} Bxd6 {[%emt 0:00:12]} 20. Nxd6 {[%emt 0:00:01]} Nf6 {[%emt 0:00:26]} 21. Qh4 {[%emt 0:00:18]} Bd7 {[%emt 0:01:16]} 22. Rxc5 {[%emt 0:00:43]} Kh8 {[%emt 0:00:10]} 23. Bxd7 {[%emt 0:01:23]} Nxd7 {[%emt 0:00:02]} 24. Rc7 {[%emt 0:00:03]} Ne5 {[%emt 0:00:32]} 25. Qh5 {[%emt 0:00:37]} Rad8 {[%emt 0:00:20]} 26. Nf5 {[%emt 0:00:04]} Qf6 {[%emt 0:00:26]} 27. e4 {[%emt 0:00:04]} Rg8 {[%emt 0:00:02]} 28. Rxb7 {[%emt 0:00:35]} Rg5 {[%emt 0:00:04]} 29. Qe2 {[%emt 0:00:10]} Rdg8 {[%emt 0:01:06]} 30. g3 {[%emt 0:00:02]} Ng4 {[%emt 0:00:22]} 31. Qb2 {[%emt 0:00:16]} Re8 {[%emt 0:01:42]} 32. Qxf6+ {[%emt 0:00:15]} Nxf6 {[%emt 0:00:02]} 33. Nd6 {[%emt 0:00:03]} 1-0

[Event "FIDE Women World Rapid 2024"]
[Site "New York"]
[Date "2024.12.27"]
[Round "7.10"]
[White "Maltsevskaya, Aleksandra"]
[Black "Paehtz, Elisabeth"]
[Result "0-1"]
[ECO "B35"]
[WhiteElo "2368"]
[BlackElo "2430"]
[Annotator "ChessBase"]
[PlyCount "82"]
[EventDate "2024.12.14"]
[EventType "swiss"]
[EventCountry "USA"]
[SourceTitle "playchess.com"]
[Source "ChessBase"]
[SourceQuality "1"]
[TimeControl "900+10"]

1. e4 {[%emt 0:00:01]} c5 {[%emt 0:00:00]} 2. Nf3 {[%emt 0:00:02]} g6 {[%emt 0:00:01]} 3. d4 {[%emt 0:00:15]} cxd4 {[%emt 0:00:01]} 4. Nxd4 {[%emt 0:00:02]} Bg7 {[%emt 0:00:02]} 5. Nc3 {[%emt 0:00:30]} Nc6 {[%emt 0:00:01]} 6. Be3 {[%emt 0:00:02]} Nf6 {[%emt 0:00:01]} 7. Bc4 {[%emt 0:00:02]} O-O {[%emt 0:00:04]} 8. Bb3 {[%emt 0:00:01]} Ng4 {[%emt 0:00:24]} 9. Qxg4 {[%emt 0:03:10]} Nxd4 {[%emt 0:00:01]} 10. Qd1 {[%emt 0:00:07]} Nxb3 {[%emt 0:00:21]} 11. axb3 {[%emt 0:00:04]} d6 {[%emt 0:00:03]} 12. Bd4 {[%emt 0:01:41]} a6 {[%emt 0:00:44]} 13. Bxg7 {[%emt 0:00:29]} Kxg7 {[%emt 0:00:01]} 14. Qd4+ {[%emt 0:00:02]} f6 {[%emt 0:00:03]} 15. O-O {[%emt 0:01:26]} Be6 {[%emt 0:00:05]} 16. f4 {[%emt 0:00:11]} Rc8 {[%emt 0:00:25]} 17. Rfe1 {[%emt 0:01:36]} Qc7 {[%emt 0:00:21]} 18. e5 {[%emt 0:00:27]} dxe5 {[%emt 0:00:14]} 19. fxe5 {[%emt 0:00:01]} f5 {[%emt 0:00:09]} 20. Nd5 {[%emt 0:03:49]} Qc5 {[%emt 0:03:10]} 21. Qxc5 {[%emt 0:00:13]} Rxc5 {[%emt 0:00:01]} 22. Nf4 {[%emt 0:00:04]} Kf7 {[%emt 0:00:01]} 23. c4 {[%emt 0:01:26]} Rd8 {[%emt 0:00:13]} 24. Rad1 {[%emt 0:02:16]} Rxd1 {[%emt 0:00:58]} 25. Rxd1 {[%emt 0:00:01]} Rxe5 {[%emt 0:00:04]} 26. Rd8 {[%emt 0:00:05]} Re1+ {[%emt 0:00:49]} 27. Kf2 {[%emt 0:00:02]} Rb1 {[%emt 0:00:01]} 28. Nd3 {[%emt 0:00:02]} f4 {[%emt 0:00:51]} 29. Rb8 {[%emt 0:01:24]} Bf5 {[%emt 0:00:03]} 30. Nc5 {[%emt 0:00:01]} Rxb2+ {[%emt 0:01:35]} 31. Kf3 {[%emt 0:00:02]} g5 {[%emt 0:00:56]} 32. Rxb7 {[%emt 0:00:12]} Bc2 {[%emt 0:00:04]} 33. Nxa6 {[%emt 0:00:42]} Bxb3 {[%emt 0:00:30]} 34. Nc5 {[%emt 0:00:06]} Bd1+ {[%emt 0:00:17]} 35. Ke4 {[%emt 0:00:02]} Rxg2 {[%emt 0:00:19]} 36. Nd3 {[%emt 0:00:22]} Bc2 {[%emt 0:00:21]} 37. c5 {[%emt 0:00:03]} Re2+ {[%emt 0:00:20]} 38. Kd4 {[%emt 0:00:12]} Rd2 {[%emt 0:00:11]} 39. c6 {[%emt 0:00:13]} Rxd3+ {[%emt 0:00:05]} 40. Kc4 {[%emt 0:00:02]} Rd6 {[%emt 0:00:18]} 41. c7 {[%emt 0:00:05]} Bf5 {[%emt 0:00:03]} 0-1

[Event "FIDE Women World Rapid 2024"]
[Site "New York"]
[Date "2024.12.27"]
[Round "7.11"]
[White "Gunina, Valentina"]
[Black "Khamdamova, Afruza"]
[Result "0-1"]
[ECO "D37"]
[WhiteElo "2425"]
[BlackElo "2354"]
[Annotator "ChessBase"]
[PlyCount "98"]
[EventDate "2024.12.14"]
[EventType "swiss"]
[EventCountry "USA"]
[SourceTitle "playchess.com"]
[Source "ChessBase"]
[SourceQuality "1"]
[TimeControl "900+10"]

1. d4 {[%emt 0:00:03]} d5 {[%emt 0:00:01]} 2. c4 {[%emt 0:00:01]} e6 {[%emt 0:00:00]} 3. Nf3 {[%emt 0:00:02]} Nf6 {[%emt 0:00:02]} 4. Nc3 {[%emt 0:00:01]} Be7 {[%emt 0:00:01]} 5. Bf4 {[%emt 0:00:02]} O-O {[%emt 0:00:02]} 6. e3 {[%emt 0:00:01]} b6 {[%emt 0:00:01]} 7. Bd3 {[%emt 0:00:03]} dxc4 {[%emt 0:00:02]} 8. Bxc4 {[%emt 0:00:01]} Ba6 {[%emt 0:00:01]} 9. Be2 {[%emt 0:00:03]} Qc8 {[%emt 0:00:15]} 10. O-O {[%emt 0:00:07]} Bxe2 {[%emt 0:01:24]} 11. Qxe2 {[%emt 0:00:02]} Qb7 {[%emt 0:00:22]} 12. Rac1 {[%emt 0:00:13]} c6 {[%emt 0:00:47]} 13. h3 {[%emt 0:01:05]} Nbd7 {[%emt 0:00:04]} 14. Rfd1 {[%emt 0:00:02]} Rfd8 {[%emt 0:00:43]} 15. Bh2 {[%emt 0:00:43]} c5 {[%emt 0:00:58]} 16. dxc5 {[%emt 0:00:54]} Nxc5 {[%emt 0:00:07]} 17. Nd4 {[%emt 0:00:36]} Rac8 {[%emt 0:00:42]} 18. a3 {[%emt 0:00:30]} a6 {[%emt 0:00:39]} 19. f3 {[%emt 0:01:13]} b5 {[%emt 0:00:22]} 20. b4 {[%emt 0:01:41]} Ncd7 {[%emt 0:00:10]} 21. Nb3 {[%emt 0:00:02]} Nb6 {[%emt 0:00:31]} 22. Rxd8+ {[%emt 0:00:17]} Rxd8 {[%emt 0:01:01]} 23. Na5 {[%emt 0:01:06]} Qd7 {[%emt 0:00:10]} 24. Be5 {[%emt 0:00:29]} h6 {[%emt 0:01:21]} 25. Bd4 {[%emt 0:01:20]} Nbd5 {[%emt 0:01:19]} 26. Nxd5 {[%emt 0:00:02]} Nxd5 {[%emt 0:00:01]} 27. Nc6 {[%emt 0:04:01]} Rc8 {[%emt 0:00:09]} 28. Qc2 {[%emt 0:00:02]} Kh8 {[%emt 0:00:37]} 29. e4 {[%emt 0:01:28]} Nf4 {[%emt 0:00:06]} 30. Kh2 {[%emt 0:00:58]} Bg5 {[%emt 0:01:41]} 31. Bb2 {[%emt 0:02:50]} Nd3 {[%emt 0:00:49]} 32. Rd1 {[%emt 0:00:07]} Qc7+ {[%emt 0:00:01]} 33. e5 {[%emt 0:00:16]} Nxb2 {[%emt 0:00:08]} 34. Re1 {[%emt 0:00:16]} Na4 {[%emt 0:00:13]} 35. Qf2 {[%emt 0:00:09]} Qxc6 {[%emt 0:00:05]} 36. f4 {[%emt 0:00:01]} Be7 {[%emt 0:00:11]} 37. f5 {[%emt 0:00:10]} exf5 {[%emt 0:00:01]} 38. Qxf5 {[%emt 0:00:06]} Qe6 {[%emt 0:00:01]} 39. Qe4 {[%emt 0:00:06]} Nc3 {[%emt 0:00:04]} 40. Qb7 {[%emt 0:00:05]} Nd5 {[%emt 0:00:08]} 41. Kh1 {[%emt 0:00:10]} Qc6 {[%emt 0:01:24]} 42. Qa7 {[%emt 0:00:01]} Nf4 {[%emt 0:00:17]} 43. Rg1 {[%emt 0:00:17]} Qe6 {[%emt 0:00:14]} 44. Qb7 {[%emt 0:00:20]} Nxh3 {[%emt 0:00:13]} 45. Rf1 {[%emt 0:00:02]} Ng5 {[%emt 0:00:13]} 46. Re1 {[%emt 0:00:20]} Rc2 {[%emt 0:00:06]} 47. Qa8+ {[%emt 0:00:23]} Kh7 {[%emt 0:00:01]} 48. Rf1 {[%emt 0:00:10]} Qxe5 {[%emt 0:00:15]} 49. Qb7 {[%emt 0:00:11]} Bd6 {[%emt 0:00:04]} 0-1